bitfinex/quotes_ETHUSD_20241231
["timestamp","ask_amount","ask_price","bid_price","bid_amount"]
[1735644166369,5.94269,3398.3,3397.8,2.62985867]
[1735644167603,5.94269,3398.3,3397.8,0.07496962]
[1735644167759,5.94269,3398.3,3397.7,1.5774]
[1735644167954,5.94269,3398.3,3397.8,0.07496962]
[1735644168160,2.94275,3398.2,3397.7,1.5774]
[1735644168355,2.94275,3398.2,3397.8,0.07496962]
[1735644168595,2.94275,3398.2,3397.7,1.5774]
[1735644168766,2.94275,3398.2,3397.9,0.07496962]
[1735644169121,2.94275,3398.2,3397.7,1.5774]
[1735644169285,2.94275,3398.2,3398.0,0.07496962]
[1735644169456,3.88070018,3398.2,3397.7,1.5774]
[1735644169671,5.94271,3398.3,3398.1,0.07496962]
[1735644169875,5.94271,3398.3,3397.7,1.5774]
[1735644170203,5.94271,3398.3,3397.8,0.07496962]
[1735644170360,1.25103647,3398.1,3397.7,1.5774]
[1735644170697,1.25103647,3398.1,3397.8,0.07496962]
[1735644171059,1.25103647,3398.1,3397.7,1.5774]
[1735644171260,1.25103647,3398.1,3397.9,0.07496962]
[1735644171461,1.25103647,3398.1,3397.8,2.55525881]
[1735644171662,1.25103647,3398.1,3398.0,0.07496962]
[1735644171889,1.25103647,3398.1,3397.8,2.55525881]
[1735644172085,1.25103647,3398.1,3398.0,0.07496962]
[1735644172291,1.25103647,3398.1,3397.8,2.55525881]
[1735644172479,1.25103647,3398.1,3398.0,0.07496962]
[1735644172675,1.25103647,3398.1,3397.8,1.53315529]
[1735644172905,1.25103647,3398.1,3398.0,0.07496962]
[1735644173105,1.25103647,3398.1,3397.9,1.6606]
[1735644173296,1.25103647,3398.1,3398.0,0.07496962]
[1735644173701,1.25103647,3398.3,3398.0,0.07496962]
[1735644176008,4.19369647,3398.3,3398.0,0.07496962]
[1735644176518,1.25103647,3398.1,3398.0,0.07496962]
[1735644181726,1.25103647,3398.5,3398.0,0.07496962]
[1735644182528,1.25103647,3398.6,3398.1,1.6606]
[1735644182903,1.25103647,3398.6,3398.2,0.07483122]
[1735644183228,1.25103647,3398.4,3398.2,0.07483122]
[1735644187557,1.25103647,3398.6,3398.2,0.07483122]
[1735644189263,1.25103647,3398.6,3398.2,0.1042552]
[1735644189774,1.25103647,3398.8,3398.2,0.07483122]
[1735644189928,1.25103647,3398.8,3398.3,1.6606]
[1735644190132,1.25103647,3398.8,3398.4,0.07419016]
[1735644191767,2.94172,3399.4,3398.7,2.94229]
[1735644191768,1.5952,3399.4,3398.7,2.94229]
[1735644191967,1.5952,3399.6,3398.8,1.69001878]
[1735644192235,1.5952,3399.6,3398.8,1.73460809]
[1735644192236,1.25103647,3399.5,3398.8,1.73460809]
[1735644192794,1.25103647,3399.5,3398.8,4.67680809]
[1735644192976,1.25103647,3399.3,3398.8,1.73460809]
[1735644193751,1.25103647,3399.3,3398.9,1.01871785]
[1735644194171,1.25103647,3399.3,3399.0,0.0739644]
[1735644195339,1.25103647,3399.3,3398.8,4.6028]
[1735644195838,1.25103647,3399.3,3398.9,0.0739644]
[1735644196683,1.5952,3399.8,3399.0,2.94202]
[1735644196977,1.25103647,3399.7,3399.1,1.6606]
[1735644197180,1.25103647,3399.5,3399.1,1.6606]
[1735644197487,1.25103647,3399.5,3399.2,0.0739644]
[1735644197847,1.25103647,3399.7,3399.2,0.0739644]
[1735644198443,1.25103647,3399.7,3399.3,1.6025]
[1735644198788,1.25103647,3399.7,3399.4,0.0739644]
[1735644199099,1.25103647,3399.7,3399.3,1.6025]
[1735644199361,1.25103647,3399.7,3399.5,0.07335286]
[1735644199563,1.25103647,3399.7,3399.3,1.6025]
[1735644200051,1.25103647,3399.7,3399.4,0.07335286]
[1735644200363,4.47778,3400.0,3399.4,0.07335286]
[1735644200506,4.47778,3400.0,3399.3,1.6025]
[1735644200902,4.47778,3400.0,3399.4,0.0725229]
[1735644201356,4.47778,3400.0,3399.3,1.6025]
[1735644201952,4.47778,3400.0,3399.4,0.0725229]
[1735644202311,1.5366,3400.0,3399.4,0.0725229]
[1735644202921,1.5366,3400.0,3399.3,1.6025]
[1735644203324,1.5366,3400.0,3399.4,0.0725229]
[1735644203608,1.5366,3400.0,3399.3,1.6025]
[1735644204063,1.5366,3400.0,3399.4,0.0725229]
[1735644204545,1.5366,3400.0,3399.3,1.6025]
[1735644204849,1.5366,3400.0,3399.4,0.0725229]
[1735644205552,1.5366,3400.4,3399.5,1.6025]
[1735644205750,4.47746,3400.4,3399.5,1.6025]
[1735644206054,0.73206438,3400.3,3399.5,1.6025]
[1735644206952,1.5366,3400.4,3399.6,1.6025]
[1735644207153,1.5366,3400.4,3399.6,4.54397]
[1735644208661,1.5366,3400.4,3399.7,2.94136]
[1735644209645,1.5366,3400.4,3399.6,1.6025]
[1735644212028,2.84318384,3400.5,3399.7,2.94142]
[1735644212222,2.84318384,3400.5,3399.8,1.6025]
[1735644213467,4.47721,3400.7,3399.8,4.54382]
[1735644216871,4.47721,3400.7,3399.9,1.4086]
[1735644220760,2.94068,3400.6,3399.9,1.4086]
[1735644221170,1.5366,3400.7,3399.9,4.3498]
[1735644222387,5.78373384,3400.8,3400.0,1.4086]
[1735644222388,1.2492601,3400.5,3400.0,1.4086]
[1735644226201,1.2492601,3400.3,3400.0,1.4086]
[1735644226401,1.2492601,3400.3,3399.7,4.4086]
[1735644227463,1.2492601,3400.3,3399.7,7.35]
[1735644227903,1.2492601,3400.3,3399.7,4.4086]
[1735644228064,1.2492601,3400.3,3399.8,2.94133]
[1735644228488,1.2492601,3400.3,3399.7,4.4086]
[1735644231415,1.517,3400.6,3399.7,4.4086]
[1735644231581,1.2492601,3400.5,3399.7,4.4086]
[1735644231781,1.2492601,3400.5,3399.7,1.4086]
[1735644232112,1.2492601,3400.5,3399.8,2.94134]
[1735644232317,1.2492601,3400.5,3399.9,2.94125]
[1735644234782,1.2492601,3400.3,3399.8,1.52690212]
[1735644236507,1.517,3400.2,3399.8,1.52690212]
[1735644236684,1.517,3400.2,3399.9,1.01874351]
[1735644236880,1.517,3400.2,3399.9,1.0903932]
[1735644237598,1.517,3400.2,3400.0,1.01874351]
[1735644238125,1.517,3400.2,3400.1,0.07164969]
[1735644238983,1.517,3400.2,3399.9,1.52690212]
[1735644239393,1.517,3400.2,3400.0,0.07164969]
[1735644239594,2.7662601,3400.5,3400.0,0.07164969]
[1735644239794,2.7662601,3400.5,3400.0,1.52690212]
[1735644240493,1.2492601,3400.3,3400.0,1.52690212]
[1735644241505,1.2492601,3400.3,3400.1,1.01945196]
[1735644242932,2.7662601,3400.5,3400.2,1.01945196]
[1735644244197,1.517,3400.5,3400.0,1.23128316]
[1735644245535,1.517,3400.5,3400.1,3.78199443]
[1735644246266,2.5133601,3400.7,3400.2,2.55071127]
[1735644247668,2.5133601,3400.7,3400.3,2.55071127]
[1735644248842,1.2641,3400.7,3400.4,1.02028451]
[1735644249148,1.2492601,3400.8,3400.4,1.02028451]
[1735644249350,429.16264843,3401.0,3400.5,1.2512]
[1735644249566,432.73669618,3401.0,3400.5,1.2512]
[1735644249794,432.73669618,3401.0,3400.4,1.02028451]
[1735644249990,1.2492601,3400.8,3400.4,1.02028451]
[1735644250199,1.2492601,3400.8,3400.5,1.02028451]
[1735644251593,1.2492601,3400.6,3400.5,1.02028451]
[1735644251781,1.2492601,3400.6,3400.5,1.23128316]
[1735644252316,4.1899101,3400.6,3400.5,1.23128316]
[1735644252457,5.4540101,3400.6,3400.5,1.23128316]
[1735644252848,5.4540101,3400.6,3400.5,2.5531538]
[1735644253072,6.59308507,3400.6,3400.5,2.5531538]
[1735644253980,6.59308507,3400.6,3400.2,1.84692474]
[1735644253981,6.59308507,3400.6,3400.1,1.23128316]
[1735644254277,1.2492601,3400.4,3400.1,1.23128316]
[1735644255072,1.2492601,3400.4,3400.2,2.55441692]
[1735644256259,1.2492601,3400.4,3400.3,1.02176677]
[1735644256700,4.1900901,3400.4,3400.3,1.02176677]
[1735644256857,4.90763822,3400.4,3400.3,1.02176677]
[1735644258362,1.96680822,3400.4,3400.3,1.02176677]
[1735644259265,1.2492601,3400.4,3400.3,1.02176677]
[1735644260421,1.2492601,3400.6,3400.3,1.02176677]
[1735644261371,1.2492601,3400.6,3400.4,1.02176677]
[1735644262444,1.2492601,3400.6,3400.2,1.23128316]
[1735644263902,1.2492601,3400.6,3400.3,2.5538223]
[1735644265004,1.2492601,3400.6,3400.4,1.02152892]
[1735644266419,1.2492601,3400.6,3400.2,1.23128316]
[1735644267445,1.2492601,3400.6,3400.3,2.55456446]
[1735644268243,1.2492601,3400.6,3400.4,1.02182578]
[1735644268744,2.5473601,3400.6,3400.4,1.02182578]
[1735644269304,2.5473601,3400.6,3400.2,1.23128316]
[1735644269517,5.4880201,3400.6,3400.2,1.23128316]
[1735644270307,2.94074,3400.5,3400.2,1.23128316]
[1735644270803,1.2492601,3400.4,3400.3,2.55470766]
[1735644271205,4.1900901,3400.4,3400.3,2.55470766]
[1735644271450,9.03700011,3400.4,3400.3,2.55470766]
[1735644271652,10.83626021,3400.4,3400.3,2.55470766]
[1735644271944,9.58700011,3400.4,3400.3,2.55470766]
[1735644272336,11.18125869,3400.4,3400.3,2.55470766]
[1735644273511,2.94133,3399.9,3399.1,1.23128316]
[1735644273821,5.94137,3399.8,3399.1,1.23128316]
[1735644274454,5.94137,3399.8,3399.2,0.22055246]
[1735644274859,2.94144,3399.7,3399.3,0.22055246]
[1735644275207,2.94144,3399.7,3399.4,0.06174648]
[1735644275451,2.94144,3399.7,3399.3,0.22055246]
[1735644275652,2.94144,3399.7,3399.4,0.06174648]
[1735644275861,3.0,3399.6,3399.1,1.23128316]
[1735644276067,3.0,3399.6,3399.2,0.06174648]
[1735644277151,3.0,3399.6,3399.3,2.55247641]
[1735644277729,3.0,3399.6,3399.4,0.06174648]
[1735644278207,3.0,3399.6,3399.3,2.55247641]
[1735644278412,3.0,3399.6,3399.5,0.06174648]
[1735644278974,3.0,3399.6,3399.2,1.75183189]
[1735644279152,3.0,3399.6,3399.5,0.06174648]
[1735644279782,3.0,3399.8,3399.2,1.53148585]
[1735644279938,3.0,3399.8,3399.5,0.06174648]
[1735644280141,2.94136,3399.8,3399.2,1.53148585]
[1735644280812,2.94136,3399.8,3399.3,0.06174648]
[1735644281136,2.94136,3399.8,3399.2,1.53148585]
[1735644281472,2.94136,3399.8,3399.4,0.06174648]
[1735644281679,2.94136,3399.8,3399.2,1.53148585]
[1735644281829,2.94136,3399.8,3399.5,0.06174648]
[1735644282181,2.94136,3399.8,3399.2,1.53148585]
[1735644282182,3.94442787,3399.8,3399.2,1.53148585]
[1735644282333,2.94136,3399.8,3399.6,0.06174648]
[1735644282537,2.94136,3399.8,3399.2,1.53148585]
[1735644282735,2.94136,3399.8,3399.7,0.06174648]
[1735644282938,2.94136,3399.8,3399.2,1.53148585]
[1735644283159,2.94136,3399.8,3399.7,0.06174648]
[1735644283358,3.94442787,3399.8,3399.1,1.53148585]
[1735644283516,2.94136,3399.8,3399.7,0.06174648]
[1735644283712,2.94136,3399.8,3399.2,1.2543]
[1735644283944,3.0,3399.6,3399.2,1.2543]
[1735644285391,3.0,3399.6,3399.2,1.47460917]
[1735644287605,3.0,3399.6,3399.2,1.2543]
[1735644287763,2.94131,3399.9,3399.2,1.2543]
[1735644288337,3.0,3399.8,3399.2,1.2543]
[1735644290104,3.0,3399.8,3399.3,0.06243045]
[1735644290594,3.0,3399.8,3399.2,1.2543]
[1735644290897,4.2827,3399.6,3399.0,1.2798]
[1735644291037,2.9416,3399.5,3399.0,1.2798]
[1735644291653,2.9416,3399.5,3399.1,0.28278824]
[1735644292292,2.9416,3399.5,3399.2,0.22035779]
[1735644292638,2.9416,3399.5,3399.3,0.06243045]
[1735644293187,2.9416,3399.5,3399.4,0.06243045]
[1735644293544,2.5326406,3399.6,3399.1,0.22037129]
[1735644293885,4.1916406,3399.4,3399.2,0.22037129]
[1735644294437,4.1916406,3399.4,3399.0,1.2798]
[1735644294800,2.94179,3399.3,3398.8,2.76276901]
[1735644295513,2.94179,3399.3,3398.7,4.04256901]
[1735644296097,1.2499406,3399.4,3398.7,4.04256901]
[1735644297192,1.2499406,3399.4,3398.8,1.0199611]
[1735644298202,1.2499406,3399.4,3398.9,1.24052059]
[1735644298767,1.2499406,3399.4,3398.9,1.0199611]
[1735644299277,1.2499406,3399.4,3398.8,1.53148585]
[1735644299865,2.94165,3399.5,3398.8,1.53148585]
[1735644300490,2.94165,3399.5,3398.9,1.53148585]
[1735644300676,2.94165,3399.5,3399.0,1.2798]
[1735644303419,1.2499406,3399.4,3399.0,1.2798]
[1735644304050,2.94165,3399.5,3399.0,1.2798]
[1735644304966,2.94165,3399.5,3399.1,1.02027214]
[1735644305162,2.94165,3399.5,3399.1,1.08363401]
[1735644306200,2.94165,3399.5,3399.1,0.06336187]
[1735644310516,2.94165,3399.5,3399.1,1.59484772]
[1735644311810,1.2499406,3399.4,3399.2,1.02099963]
[1735644311946,4.1916406,3399.4,3399.2,1.02099963]
[1735644312300,1.2499406,3399.4,3399.3,0.06322235]
[1735644312501,1.2499406,3399.4,3399.2,1.02099963]
[1735644312806,1.2499406,3399.4,3399.0,2.51108316]
[1735644312807,1.2499406,3399.4,3399.3,0.06322235]
[1735644313179,1.2499406,3399.4,3399.0,2.51108316]
[1735644313381,1.2499406,3399.4,3399.3,0.06312773]
[1735644313580,1.79736666,3399.4,3399.0,1.23128316]
[1735644313770,4.73905666,3399.4,3399.3,0.06312773]
[1735644313972,4.73905666,3399.4,3399.0,1.23128316]
[1735644313973,2.94187,3399.2,3399.0,1.23128316]
[1735644314173,2.94187,3399.2,3399.1,1.53243792]
[1735644314709,4.73910666,3399.4,3399.1,1.53243792]
[1735644315272,4.1916806,3399.4,3399.1,2.5544261]
[1735644315834,1.2827,3399.6,3399.1,2.5544261]
[1735644316027,5.4741806,3399.6,3399.2,1.3156]
[1735644316414,2.5326406,3399.6,3399.2,1.3156]
[1735644316620,2.94171,3399.4,3399.2,2.5544261]
[1735644317725,2.94171,3399.4,3399.3,1.02198818]
[1735644318072,4.1916506,3399.4,3399.3,1.02198818]
[1735644318977,4.1916506,3399.4,3399.3,2.55687165]
[1735644320148,4.1916506,3399.4,3399.3,2.62011584]
[1735644321422,4.73908566,3399.4,3399.3,2.62011584]
[1735644321619,9.06678566,3399.4,3399.3,2.62011584]
[1735644323741,9.06678566,3399.4,3399.3,0.06324419]
[1735644324054,2.94207,3399.0,3398.7,1.23128316]
[1735644324255,1.2499406,3398.9,3398.7,1.23128316]
[1735644324555,1.2499406,3398.9,3398.8,0.06335339]
[1735644324725,1.2499406,3398.9,3398.7,1.23128316]
[1735644324927,4.1920806,3398.9,3398.8,2.5576977]
[1735644325140,5.5197806,3398.9,3398.8,2.62105109]
[1735644326926,6.36595066,3398.9,3398.8,2.62105109]
[1735644327367,5.11601006,3398.9,3398.8,1.08643247]
[1735644327845,3.78831006,3398.9,3398.8,1.08643247]
[1735644328752,3.78831006,3398.9,3398.8,0.06335339]
[1735644329115,2.94225,3398.8,3398.6,1.2334]
[1735644329352,4.1921906,3398.8,3398.6,1.2334]
[1735644329526,2.94238,3398.7,3398.5,1.23128316]
[1735644330262,2.94214,3398.9,3398.5,2.46468316]
[1735644330614,1.2499406,3399.0,3398.5,2.46468316]
[1735644330936,2.942,3399.1,3398.5,2.46468316]
[1735644331744,2.942,3399.1,3398.6,2.55564265]
[1735644332347,1.2499406,3399.0,3398.6,2.55564265]
[1735644332857,1.2499406,3399.0,3398.7,1.02225706]
[1735644333556,4.1920406,3399.0,3398.7,1.02225706]
[1735644334348,4.1920406,3399.0,3398.5,2.46468316]
[1735644335089,1.2499406,3398.8,3398.5,2.46468316]
[1735644335292,2.9423,3398.7,3398.6,2.61910608]
[1735644335989,2.9423,3398.7,3398.6,0.06380473]
[1735644336161,2.60781607,3398.7,3398.6,0.06380473]
[1735644336690,2.60781607,3398.7,3398.3,1.23128316]
[1735644336881,2.60781607,3398.7,3398.6,0.06380473]
[1735644337494,2.60781607,3398.7,3398.4,1.53346114]
[1735644337667,2.60781607,3398.7,3398.6,0.06380473]
[1735644337870,2.60781607,3398.7,3398.3,1.23128316]
[1735644338181,1.2499406,3398.8,3398.3,1.23128316]
[1735644338379,2.9424,3398.6,3398.3,1.23128316]
[1735644338694,2.9424,3398.6,3398.4,0.06380473]
[1735644338852,2.9424,3398.6,3398.4,1.08608024]
[1735644339691,2.9424,3398.6,3398.5,1.02227551]
[1735644340294,2.9424,3398.6,3398.5,1.08608024]
[1735644340682,2.9424,3398.6,3398.5,0.06380473]
[1735644340996,2.9424,3398.6,3398.2,2.56048316]
[1735644341197,2.9424,3398.6,3398.5,0.06380473]
[1735644341357,2.9424,3398.6,3398.2,2.56048316]
[1735644341557,2.9424,3398.6,3398.5,0.06380473]
[1735644341758,2.9424,3398.6,3398.3,1.53316317]
[1735644341958,2.9424,3398.6,3398.5,0.06380473]
[1735644342159,2.9424,3398.6,3398.3,1.53316317]
[1735644342368,4.1923406,3398.6,3398.5,0.06380473]
[1735644342579,4.1923406,3398.6,3398.3,1.53316317]
[1735644342754,4.1923406,3398.6,3398.5,0.06380473]
[1735644342955,4.1923406,3398.6,3398.3,1.53316317]
[1735644343189,4.1923406,3398.6,3398.5,0.06380473]
[1735644343368,4.1923406,3398.6,3398.4,1.02199385]
[1735644343587,4.1923406,3398.6,3398.5,0.06380473]
[1735644344459,4.1923406,3398.6,3398.2,2.56048316]
[1735644344655,4.1923406,3398.6,3398.5,0.06380473]
[1735644345199,4.1923406,3398.6,3398.3,1.53284581]
[1735644345355,2.94251,3398.5,3398.3,1.53284581]
[1735644346001,2.94251,3398.5,3398.4,1.02189307]
[1735644348963,2.9426,3398.4,3398.2,1.02189307]
[1735644349600,1.2499406,3398.4,3398.2,1.02189307]
[1735644349799,2.94264,3398.3,3398.2,1.02189307]
[1735644350324,2.94264,3398.3,3398.1,1.02189307]
[1735644350501,2.94264,3398.3,3398.2,0.0638557]
[1735644351283,5.03355106,3398.3,3398.2,0.0638557]
[1735644352024,2.94282,3398.1,3398.0,1.53274312]
[1735644352402,4.1927606,3398.1,3398.0,1.53274312]
[1735644353231,1.2499406,3398.1,3397.5,2.81344312]
[1735644353434,4.1929506,3397.9,3397.5,2.81344312]
[1735644354140,4.1929506,3397.9,3397.5,1.2807]
[1735644355743,2.94316,3397.8,3397.5,1.2807]
[1735644357442,2.94324,3397.7,3397.5,1.2807]
[1735644357960,1.2499406,3397.9,3397.5,1.2807]
[1735644358266,4.1929506,3397.9,3397.5,1.2807]
[1735644359200,1.2499406,3397.9,3397.5,1.2807]
[1735644359405,2.94312,3397.8,3397.5,1.2807]
[1735644359761,1.2499406,3397.7,3397.5,1.2807]
[1735644360118,2.94312,3397.8,3397.5,1.2807]
[1735644360521,2.94243,3398.6,3397.5,1.2807]
[1735644360522,1.85512062,3398.9,3397.5,1.2807]
[1735644360735,2.94255,3398.5,3397.5,1.2807]
[1735644360934,2.94257,3398.4,3397.5,1.2807]
[1735644361655,2.94257,3398.4,3397.5,1.31012767]
[1735644362259,4.79736062,3398.8,3397.7,1.2807]
[1735644362260,6.04731122,3398.8,3397.7,1.2807]
[1735644362410,2.9423,3398.7,3397.7,1.2807]
[1735644363066,2.94239,3398.6,3397.7,1.2807]
[1735644364148,2.94239,3398.6,3397.9,1.23128316]
[1735644364357,2.94239,3398.6,3398.0,1.3017]
[1735644364909,2.94239,3398.6,3398.1,1.3017]
[1735644365409,2.94239,3398.6,3398.2,0.06486791]
[1735644365951,2.94239,3398.6,3398.2,1.08572505]
[1735644367225,2.94239,3398.6,3398.2,0.06486791]
[1735644367736,2.94247,3398.5,3398.2,0.06486791]
[1735644368114,2.94247,3398.5,3398.2,1.59761103]
[1735644369865,3.0,3398.9,3398.2,1.59761103]
[1735644370073,2.94256,3398.4,3398.2,1.59761103]
[1735644370233,2.94264,3398.3,3398.2,1.59761103]
[1735644370744,2.94264,3398.3,3398.2,0.06486791]
[1735644371350,2.94274,3398.2,3398.0,1.23128316]
[1735644372524,2.94274,3398.2,3397.9,1.53299513]
[1735644373639,2.94274,3398.2,3398.0,1.02201952]
[1735644374361,2.94274,3398.2,3397.8,2.53298316]
[1735644374729,1.222,3398.6,3397.8,2.53298316]
[1735644375069,2.94292,3398.0,3397.8,2.53298316]
[1735644375672,2.94292,3398.0,3397.9,2.55511728]
[1735644377272,2.94292,3398.0,3397.7,1.53307037]
[1735644377443,2.94308,3397.8,3397.7,1.53307037]
[1735644378569,1.298,3397.8,3397.5,1.53307037]
[1735644378746,2.94325,3397.6,3397.5,1.53307037]
[1735644379931,2.94334,3397.5,3397.4,1.53307037]
[1735644380245,2.94334,3397.5,3397.4,1.59538312]
[1735644380888,2.94334,3397.5,3397.4,1.08443312]
[1735644385196,2.54922295,3397.8,3397.4,1.08443312]
[1735644385494,2.94321,3397.7,3397.4,1.08443312]
[1735644386683,2.94321,3397.7,3397.4,0.06231275]
[1735644386995,2.94304,3397.9,3397.4,0.06231275]
[1735644387195,2.94304,3397.9,3397.5,1.3224]
[1735644387601,2.94304,3397.9,3397.6,0.06231275]
[1735644387797,1.25122295,3398.1,3397.6,0.06231275]
[1735644387961,2.94278,3398.2,3397.6,0.06231275]
[1735644388162,2.94258,3398.4,3397.7,1.3224]
[1735644388476,2.94258,3398.4,3397.8,0.06309208]
[1735644389486,4.19380295,3398.4,3397.8,0.06309208]
[1735644389867,2.94271,3398.3,3397.8,0.06309208]
[1735644390067,2.94271,3398.3,3397.7,3.87693867]
[1735644390267,2.94271,3398.3,3397.9,0.06309208]
[1735644390585,2.94271,3398.3,3397.9,2.55453867]
[1735644390791,2.94271,3398.3,3398.0,0.06309208]
[1735644391987,2.94271,3398.3,3397.8,1.53280138]
[1735644392205,2.94271,3398.3,3398.1,0.06309208]
[1735644392406,2.94271,3398.3,3397.8,1.53280138]
[1735644392712,2.94271,3398.3,3398.2,0.06309208]
[1735644392896,2.94271,3398.3,3397.9,1.53280138]
[1735644393099,2.94271,3398.3,3398.2,0.06309208]
[1735644393272,2.94271,3398.3,3397.9,1.53280138]
[1735644393474,2.94271,3398.3,3398.2,0.06309208]
[1735644393680,2.94271,3398.3,3398.0,1.02210431]
[1735644394218,2.94271,3398.3,3398.1,0.06309208]
[1735644395476,2.94271,3398.3,3397.8,1.53337284]
[1735644395716,2.94271,3398.3,3398.2,0.06309208]
[1735644396192,2.94271,3398.3,3397.8,1.53337284]
[1735644396395,2.94271,3398.3,3398.2,0.06309208]
[1735644396596,2.94271,3398.3,3397.9,2.55563875]
[1735644396793,2.94271,3398.3,3398.2,0.06309208]
[1735644396992,2.94271,3398.3,3397.9,2.55563875]
[1735644397194,2.94271,3398.3,3398.2,0.06309208]
[1735644397393,2.94271,3398.3,3397.9,2.55563875]
[1735644397604,2.94271,3398.3,3398.2,0.06309208]
[1735644397916,2.94271,3398.3,3398.0,1.02226591]
[1735644398115,2.94271,3398.3,3398.2,0.06309208]
[1735644398306,2.94271,3398.3,3398.0,1.02226591]
[1735644398508,2.94271,3398.3,3398.2,0.06279344]
[1735644398678,2.94274,3398.2,3398.0,1.02226591]
[1735644398882,2.94274,3398.2,3397.8,1.23128316]
[1735644400431,2.94274,3398.2,3397.9,2.55568613]
[1735644401324,2.94274,3398.2,3398.0,2.55568613]
[1735644402725,2.94274,3398.2,3397.8,1.23128316]
[1735644404141,2.94274,3398.2,3397.9,2.5557949]
[1735644405347,2.94274,3398.2,3398.0,2.5557949]
[1735644406352,2.94274,3398.2,3398.1,1.02231796]
[1735644410267,2.94274,3398.2,3398.1,1.0851114]
[1735644413172,2.94274,3398.2,3398.1,1.08511136]
[1735644414974,4.19344395,3398.4,3398.1,1.08511136]
[1735644415268,4.19344395,3398.4,3398.1,2.61929833]
[1735644415269,3.7860154,3398.4,3398.1,2.61929833]
[1735644415477,2.94263,3398.4,3398.1,2.61929833]
[1735644416372,4.19322395,3398.6,3398.1,2.61929833]
[1735644416550,2.94264,3398.4,3398.2,1.53418697]
[1735644417073,2.94264,3398.4,3398.3,0.06281531]
[1735644417268,2.94264,3398.4,3398.2,1.53418697]
[1735644417579,4.19322395,3398.6,3398.3,0.06281531]
[1735644417781,2.94256,3398.4,3398.3,0.06281531]
[1735644418383,0.275,3428.7,3398.2,1.2838]
[1735644418384,2.94221,3398.8,3398.2,1.2838]
[1735644418678,2.94221,3398.8,3398.0,1.23128316]
[1735644418679,2.94207,3399.0,3398.4,1.2838]
[1735644419177,4.43333457,3399.2,3398.5,0.06249483]
[1735644419385,2.94213,3398.9,3398.5,0.06249483]
[1735644420441,2.94213,3398.9,3398.6,1.53394792]
[1735644420755,2.94213,3398.9,3398.6,1.59636264]
[1735644421585,2.94213,3398.9,3398.6,0.06241472]
[1735644422644,2.94213,3398.9,3398.4,2.51508316]
[1735644422844,2.94213,3398.9,3398.7,0.06033423]
[1735644423052,2.94213,3398.9,3398.4,2.51508316]
[1735644423256,2.94213,3398.9,3398.8,0.06033423]
[1735644423456,2.94213,3398.9,3398.4,2.51508316]
[1735644423641,2.94213,3398.9,3398.8,0.06033423]
[1735644423858,2.94213,3398.9,3398.5,2.76417227]
[1735644424178,2.94213,3398.9,3398.8,0.06033423]
[1735644424380,2.94213,3398.9,3398.5,2.76417227]
[1735644424579,2.94213,3398.9,3398.8,0.06033423]
[1735644424750,0.55203439,3398.9,3398.5,2.76417227]
[1735644425137,2.94223,3398.8,3398.6,1.53288911]
[1735644425338,2.94223,3398.8,3398.6,1.59229862]
[1735644426140,2.94223,3398.8,3398.6,0.05940951]
[1735644426563,2.94223,3398.8,3398.4,2.81668911]
[1735644427043,2.94223,3398.8,3398.5,0.05824284]
[1735644429694,1.25081395,3399.0,3398.5,0.05824284]
[1735644429930,2.47349417,3399.8,3399.0,1.2593]
[1735644430240,2.47349417,3399.8,3399.6,4.75082]
[1735644430394,2.47349417,3399.8,3399.7,3.49143]
[1735644430746,2.47349417,3399.8,3399.7,4.80878359]
[1735644431419,2.17736932,3399.8,3399.7,4.80878359]
[1735644431639,4.33431483,3400.6,3400.0,2.94117]
[1735644432136,2.94025,3401.1,3400.0,2.94117]
[1735644432449,435.82264843,3401.0,3400.0,2.94117]
[1735644432660,435.82264843,3401.0,3400.0,3.09951368]
[1735644433138,435.82264843,3401.0,3400.2,1.23302204]
[1735644434171,435.82264843,3401.0,3400.1,2.54877269]
[1735644435244,439.15264843,3401.0,3400.1,2.54877269]
[1735644436051,439.15264843,3401.0,3400.1,1.01811813]
[1735644436544,439.15264843,3401.0,3400.2,4.2003]
[1735644436850,439.15264843,3401.0,3400.2,1.2593]
[1735644437030,439.15264843,3401.0,3400.3,3.55]
[1735644437345,439.15264843,3401.0,3400.4,1.2593]
[1735644437505,442.48264843,3401.0,3400.4,1.2593]
[1735644437702,442.48264843,3401.0,3400.5,4.73981]
[1735644437937,442.48264843,3401.0,3400.7,1.2491]
[1735644439423,440.29809313,3401.0,3400.7,1.2491]
[1735644439820,440.29809313,3401.0,3400.8,0.55]
[1735644440142,443.62809313,3401.0,3400.8,0.55]
[1735644440347,442.39927924,3401.0,3400.8,0.55]
[1735644442454,442.39927924,3401.0,3400.7,1.2491]
[1735644442753,1.2335,3400.9,3400.3,1.2491]
[1735644442955,2.94067,3400.6,3400.0,3.09863306]
[1735644443158,2.94067,3400.6,3400.1,1.23302204]
[1735644443468,2.94084,3400.4,3400.1,1.23302204]
[1735644443762,1.2335,3400.9,3400.1,1.23302204]
[1735644443945,2.99629957,3400.8,3400.1,1.23302204]
[1735644444142,2.99629957,3400.8,3399.7,4.2491]
[1735644444345,2.94062,3400.7,3399.7,1.2491]
[1735644444532,5.78161502,3400.7,3399.7,1.2491]
[1735644444737,2.84099502,3400.4,3399.4,1.2491]
[1735644444936,2.941,3400.2,3399.3,1.23302204]
[1735644445369,2.94128,3399.9,3399.4,0.0516174]
[1735644445674,2.94128,3399.9,3399.1,2.48212204]
[1735644445962,2.94128,3399.9,3399.5,0.0516174]
[1735644446168,2.94128,3399.9,3399.1,2.48212204]
[1735644446670,2.94128,3399.9,3399.2,0.05187197]
[1735644448876,2.94112,3400.1,3399.2,0.05187197]
[1735644449354,2.94119,3400.0,3399.2,0.05187197]
[1735644451100,5.78183502,3400.4,3399.2,0.05187197]
[1735644451101,2.84099502,3400.4,3399.2,0.05187197]
[1735644451305,2.94107,3400.2,3399.1,1.2491]
[1735644451464,2.94107,3400.2,3399.3,0.05187197]
[1735644451663,2.94107,3400.2,3399.1,1.2491]
[1735644451990,2.9411,3400.1,3399.4,0.05187197]
[1735644452403,2.9411,3400.1,3399.1,1.2491]
[1735644452574,2.9411,3400.1,3399.5,0.05187197]
[1735644452775,2.9411,3400.1,3399.1,1.2491]
[1735644452979,2.9411,3400.1,3399.6,0.05187197]
[1735644453195,3.6424115,3400.4,3399.4,0.55]
[1735644453503,4.17418,3400.6,3399.4,0.55]
[1735644453704,4.17418,3400.6,3399.4,1.2724]